fUSD/lending_fUSD_20250322
["ID","MTS","AMOUNT","RATE_DAILY","PERIOD"]
[356546167,1742637100109,-938.19,0.00049863,120]
[356546168,1742637100118,-567.38,0.00049863,120]
[356546169,1742637100127,-617.69,0.00049863,120]
[356546170,1742637100137,-1439.24,0.00049863,120]
[356546171,1742637100146,-1288.21,0.00049863,120]
[356546172,1742637100156,-3623.73,0.00049863,120]
[356546173,1742637100166,-1914.19,0.00049863,120]
[356546174,1742637100175,-1583.29,0.00049863,120]
[356546175,1742637100184,-1724.46,0.00049863,120]
[356546176,1742637100193,-2003.91,0.00049863,100]
[356546177,1742637100202,-1585.84,0.00049863,120]
[356546178,1742637100212,-500.0,0.00049863,120]
[356546179,1742637100222,-2253.09,0.00049863,120]
[356546180,1742637100231,-500.0,0.00049863,120]
[356546181,1742637100240,-500.0,0.00049863,120]
[356546182,1742637100249,-645.37,0.00049863,120]
[356546183,1742637100259,-691.36,0.00049863,120]
[356546184,1742637100268,-817.6,0.00049863,120]
[356546185,1742637100277,-523.41,0.00049863,120]
[356546186,1742637100286,-1609.26,0.00049863,120]
[356546187,1742637100295,-1857.45,0.00049863,120]
[356546188,1742637100305,-1181.24,0.00049863,120]
[356546189,1742637100314,-592.73,0.00049863,120]
[356546190,1742637100323,-1111.56,0.00049863,120]
[356546191,1742637100332,-500.0,0.00049863,120]
[356546192,1742637100344,-500.0,0.00049863,120]
[356546193,1742637100355,-1095.08,0.00049863,120]
[356546194,1742637100364,-1041.52,0.00049863,120]
[356546195,1742637100373,-500.0,0.00049863,120]
[356546196,1742637100383,-624.9,0.00049863,120]
[356546197,1742637100394,-796.13,0.00049863,120]
[356546198,1742637100403,-751.81,0.00049863,120]
[356546199,1742637100413,-722.59,0.00049863,120]
[356546200,1742637100423,-554.28,0.00049863,120]
[356546201,1742637100432,-555.78,0.00049863,120]
[356546202,1742637100442,-500.0,0.00049863,120]
[356546203,1742637100451,-3273.79,0.00049863,120]
[356546204,1742637100461,-2930.96,0.00049863,120]
[356546205,1742637100470,-1052.7,0.00049863,120]
[356546206,1742637100480,-504.22,0.00049863,120]
[356546207,1742637100490,-500.0,0.00049863,120]
[356546208,1742637100499,-504.42,0.00049863,120]
[356546209,1742637100508,-1485.55,0.00049863,120]
[356546210,1742637100517,-1080.77,0.00049863,120]
[356546211,1742637100527,-657.13,0.00049863,120]
[356546212,1742637100536,-500.0,0.00049863,120]
[356546213,1742637100546,-517.31,0.00049863,120]
[356546214,1742637100555,-760.27,0.00049863,120]
[356546215,1742637100564,-899.53,0.00049863,120]
[356546216,1742637100573,-500.0,0.00049863,120]
[356546217,1742637100582,-500.0,0.00049863,120]
[356546218,1742637100591,-692.39,0.00049863,120]
[356546219,1742637100601,-500.0,0.00049863,120]
[356546220,1742637100610,-555.67,0.00049863,120]
[356546221,1742637100619,-1026.62,0.00049863,120]
[356546222,1742637100628,-500.0,0.00049863,120]
[356546223,1742637100638,-1504.12,0.00049863,120]
[356546224,1742637100647,-655.7,0.00049863,120]
[356546225,1742637100655,-500.0,0.00049863,120]
[356546226,1742637100664,-668.14,0.00049863,120]
[356546227,1742637100673,-379.40804374,0.00049863,20]
[356546228,1742637100682,-529.96,0.00049863,120]
[356546229,1742637100692,-1785.62,0.00049863,120]
[356546230,1742637100702,-56672.48,0.00049863,120]
[356546231,1742637100711,-874.3,0.00049863,120]
[356546232,1742637100720,-500.0,0.00049863,120]
[356546233,1742637100729,-892.9,0.00049863,120]
[356546234,1742637100738,-507.98,0.00049863,120]
[356546235,1742637100747,-767.43,0.00049863,120]
[356546236,1742637100756,-818.49,0.00049863,120]
[356546237,1742637100765,-574.58,0.00049863,120]
[356546238,1742637100774,-622.98,0.00049863,120]
[356546239,1742637100784,-1187.99,0.00049863,120]
[356546240,1742637100793,-594.34,0.00049863,120]
[356546241,1742637100802,-500.0,0.00049863,120]
[356546242,1742637100812,-724.76,0.00049863,120]
[356546243,1742637100821,-500.0,0.00049863,120]
[356546244,1742637100832,-554.79,0.00049863,120]
[356546245,1742637100842,-500.0,0.00049863,120]
[356546246,1742637100853,-864.88,0.00049863,120]
[356546247,1742637100862,-664.62,0.00049863,120]
[356546248,1742637100872,-870.55,0.00049863,120]
[356546249,1742637100881,-500.0,0.00049863,120]
[356546250,1742637100891,-3152.52,0.00049863,120]
[356546251,1742637100900,-1001.37,0.00049863,120]
[356546252,1742637100910,-500.0,0.00049866,120]
[356546253,1742637100920,-2544.22048826,0.000499,120]
[356546254,1742637100931,-13700.99213117,0.000499,2]
[356546255,1742637100942,-985.87233889,0.000499,2]
[356546256,1742637100951,-50000.0,0.0005,50]
[356546257,1742637100961,-300.0,0.0005,120]
[356546258,1742637100971,-500.0,0.0005,120]
[356546259,1742637100983,-1463.1858593,0.0005,120]
[356546260,1742637100994,-250.0,0.0005,10]
[356546261,1742637101004,-232.51,0.0005,120]
[356546262,1742637101015,-10000.0,0.0005,120]
[356546263,1742637101024,-9064.24742032,0.0005,5]
[356546264,1742637101034,-161.68401377,0.0005,120]
[356546265,1742637101044,-30000.0,0.0005,90]
[356546266,1742637101054,-3018.35458934,0.0005,30]
[356546267,1742637101064,-2622.98431451,0.0005,5]
[356546268,1742637101074,-1290.97481098,0.0005,120]
[356546269,1742637101085,-1075.76504389,0.0005,120]
[356546270,1742637101096,-2277.38978444,0.0005,120]
[356546271,1742637101106,-2464.31045687,0.0005,120]
[356546272,1742637101116,-2459.57432963,0.0005,120]
[356546273,1742637101126,-210.02157586,0.0005,2]
[356546274,1742637101136,-1132.1620748,0.0005,2]
[356546275,1742637101145,-1511.71795548,0.0005,2]
[356546276,1742637101156,-2932.22335723,0.0005,120]
[356546277,1742637101165,-2864.90908456,0.0005,120]
[356546278,1742637101175,-509.52836622,0.0005,120]
[356546279,1742637101184,-459.71815235,0.0005,120]
[356546280,1742637101194,-1000000.0,0.0005,120]
[356546281,1742637101203,-173.0,0.0005,120]
[356546282,1742637101213,-4596.88735816,0.0005,120]
[356546283,1742637101223,-5000.0,0.0005,120]
[356546284,1742637101233,-156.14653742,0.0005,120]
[356546285,1742637101243,-200.0,0.0005,120]
[356546286,1742637101252,-904.785999,0.00050136,120]
[356546287,1742637101263,-733.844647,0.00050136,120]
[356546288,1742637101273,-500.0,0.00050136,120]
[356546289,1742637101283,-739.16,0.00050136,120]
[356546290,1742637101293,-500.0,0.00050136,120]
[356546291,1742637101303,-950.82,0.00050136,120]
[356546292,1742637101313,-517.63,0.00050136,120]
[356546293,1742637101323,-1049.72,0.00050136,120]
[356546294,1742637101334,-653.69,0.00050136,120]
[356546295,1742637101347,-907.89,0.00050136,120]
[356546296,1742637101357,-600.62,0.00050136,120]
[356546297,1742637101367,-500.0,0.00050136,120]
[356546298,1742637101377,-500.0,0.00050136,120]
[356546299,1742637101387,-500.0,0.00050136,120]
[356546300,1742637101397,-501.22,0.00050136,120]
[356546301,1742637101406,-761.07,0.00050136,120]
[356546302,1742637101416,-956.79,0.00050136,120]
[356546303,1742637101426,-500.0,0.00050136,120]
[356546304,1742637101438,-963.36,0.00050136,60]
[356546305,1742637101448,-782.21,0.00050136,120]
[356546306,1742637101458,-500.0,0.00050136,120]
[356546307,1742637101467,-584.06,0.00050136,120]
[356546308,1742637101477,-673.59,0.00050136,120]
[356546309,1742637101487,-500.0,0.00050136,120]
[356546310,1742637101496,-502.51,0.00050136,120]
[356546311,1742637101506,-500.0,0.00050136,120]
[356546312,1742637101516,-1473.31,0.00050136,120]
[356546313,1742637101526,-751.46,0.00050136,120]
[356546314,1742637101536,-1642.39,0.00050136,120]
[356546315,1742637101546,-654.04,0.00050136,120]
[356546316,1742637101556,-674.52,0.00050136,120]
[356546317,1742637101566,-520.54,0.00050136,120]
[356546318,1742637101576,-500.0,0.00050136,120]
[356546319,1742637101586,-233.35567218,0.00050136,120]
[356546320,1742637101596,-781.34,0.00050136,120]
[356546321,1742637101606,-500.0,0.00050136,120]
[356546322,1742637101616,-532.16,0.00050136,120]
[356546323,1742637101626,-500.0,0.00050136,120]
[356546324,1742637101635,-500.0,0.00050136,120]
[356546325,1742637101645,-601.78,0.00050136,120]
[356546326,1742637101655,-691.76,0.00050136,120]
[356546327,1742637101665,-802.29,0.00050136,120]
[356546328,1742637101674,-500.0,0.00050136,120]
[356546329,1742637101684,-580.53,0.00050136,120]
[356546330,1742637101693,-2210.41,0.00050136,120]
[356546331,1742637101703,-904.56,0.00050136,120]
[356546332,1742637101713,-500.0,0.00050136,120]
[356546333,1742637101723,-793.91,0.00050136,120]
[356546334,1742637101733,-706.55,0.00050136,120]
[356546335,1742637101743,-834.3,0.00050136,120]
[356546336,1742637101752,-671.78,0.00050136,120]
[356546337,1742637101762,-399.59525658,0.00050136,120]
[356546338,1742637101772,-500.0,0.00050136,120]
[356546339,1742637101782,-1807.75,0.00050136,120]
[356546340,1742637101792,-500.0,0.00050136,120]
[356546341,1742637101802,-842.88,0.00050136,120]
[356546342,1742637101812,-500.0,0.00050136,120]
[356546343,1742637101821,-500.0,0.00050136,120]
[356546344,1742637101831,-225.54076807,0.00050136,120]
[356546345,1742637101840,-350.0,0.00050136,120]
[356546346,1742637101850,-965.16,0.00050136,120]
[356546347,1742637101860,-591.6,0.00050136,120]
[356546348,1742637101870,-1371.05,0.00050136,120]
[356546349,1742637101882,-1325.26,0.00050136,120]
[356546350,1742637101891,-558.56,0.00050136,120]
[356546351,1742637101901,-874.61,0.00050136,120]
[356546352,1742637101910,-902.88,0.00050136,120]
[356546353,1742637101920,-509.55,0.00050136,120]
[356546354,1742637101930,-500.0,0.00050136,120]
[356546355,1742637101940,-239.15591224,0.00050136,120]
[356546356,1742637101950,-500.0,0.00050136,120]
[356546357,1742637101961,-937.33,0.00050136,120]
[356546358,1742637101970,-500.0,0.00050136,120]
[356546359,1742637101980,-1062.3,0.00050136,120]
[356546360,1742637101990,-600.78,0.00050136,120]
[356546361,1742637102000,-664.64,0.00050136,120]
[356546362,1742637102009,-668.71,0.00050136,120]
[356546363,1742637102020,-564.64,0.00050136,120]
[356546364,1742637102029,-1070.64,0.00050136,120]
[356546365,1742637102039,-979.48,0.00050136,120]
[356546366,1742637102050,-500.0,0.00050136,120]
[356546367,1742637102060,-800.83,0.00050136,120]
[356546368,1742637102074,-500.0,0.00050136,120]
[356546369,1742637102084,-698.39,0.00050136,120]
[356546370,1742637102095,-500.0,0.00050136,120]
[356546371,1742637102106,-680.79,0.00050136,120]
[356546372,1742637102118,-514.68,0.00050136,120]
[356546373,1742637102130,-536.4,0.00050136,120]
[356546374,1742637102140,-500.0,0.00050136,120]
[356546375,1742637102150,-500.0,0.00050136,120]
[356546376,1742637102160,-500.0,0.00050136,120]
[356546377,1742637102169,-500.0,0.00050136,120]
[356546378,1742637102179,-661.88,0.00050136,120]
[356546379,1742637102188,-500.0,0.00050136,120]
[356546380,1742637102198,-500.0,0.00050136,120]
[356546381,1742637102208,-500.0,0.00050136,120]
[356546382,1742637102218,-730.9,0.00050136,120]
[356546383,1742637102227,-1058.49,0.00050136,120]
[356546384,1742637102237,-500.0,0.00050136,120]
[356546385,1742637102246,-1233.22,0.00050136,120]
[356546386,1742637102256,-1327.63,0.00050136,120]
[356546387,1742637102266,-520.32,0.00050136,120]
[356546388,1742637102275,-896.4,0.00050136,120]
[356546389,1742637102284,-1347.94,0.00050136,120]
[356546390,1742637102294,-597.81,0.00050136,120]
[356546391,1742637102303,-788.73,0.00050136,120]
[356546392,1742637102313,-500.0,0.00050136,120]
[356546393,1742637102322,-500.0,0.00050136,120]
[356546394,1742637102333,-2023.49,0.00050136,120]
[356546395,1742637102347,-625.69,0.00050136,120]
[356546396,1742637102358,-1415.42,0.00050136,120]
[356546397,1742637102368,-556.5,0.00050136,120]
[356546398,1742637102378,-839.81,0.00050136,120]
[356546399,1742637102388,-813.54,0.00050136,120]
[356546400,1742637102398,-570.18,0.00050136,120]
[356546401,1742637102408,-500.0,0.00050136,120]
[356546402,1742637102418,-500.0,0.00050136,120]
[356546403,1742637102428,-500.0,0.00050136,120]
[356546404,1742637102439,-621.41,0.00050136,120]
[356546405,1742637102449,-300.0,0.00050136,120]
[356546406,1742637102460,-713.81,0.00050136,120]
[356546407,1742637102470,-500.0,0.00050136,120]
[356546408,1742637102480,-500.0,0.00050136,120]
[356546409,1742637102490,-1159.44,0.00050136,10]
[356546410,1742637102500,-639.03,0.00050136,120]
[356546411,1742637102510,-500.0,0.00050136,120]
[356546412,1742637102521,-521.66,0.00050136,120]
[356546413,1742637102531,-1837.38,0.00050136,120]
[356546414,1742637102541,-500.0,0.00050136,120]
[356546415,1742637102551,-500.0,0.00050136,120]
[356546416,1742637102561,-257.85255255,0.00050136,120]
[356546417,1742637102571,-500.0,0.00050136,120]
[356546418,1742637102580,-500.0,0.00050136,120]
[356546419,1742637102593,-872.68,0.00050136,120]
[356546420,1742637102603,-500.0,0.00050136,120]
[356546421,1742637102612,-815.59,0.00050136,120]
[356546422,1742637102622,-500.0,0.00050136,120]
[356546423,1742637102632,-564.59,0.00050136,120]
[356546424,1742637102642,-500.0,0.00050136,120]
[356546425,1742637102652,-629.6,0.00050136,120]
[356546426,1742637102662,-500.0,0.00050136,120]
[356546427,1742637102672,-1219.87,0.00050136,120]
[356546428,1742637102681,-511.1,0.00050136,120]
[356546429,1742637102691,-500.0,0.00050136,120]
[356546430,1742637102700,-412.30982018,0.00050136,120]
[356546431,1742637102710,-500.0,0.00050136,120]
[356546432,1742637102719,-973.06,0.00050136,120]
[356546433,1742637102729,-500.0,0.00050136,120]
[356546434,1742637102739,-624.39,0.00050136,120]
[356546435,1742637102748,-500.0,0.00050136,120]
[356546436,1742637102758,-1923.34,0.00050136,120]
[356546437,1742637102767,-488.32039475,0.00050136,120]
[356546438,1742637102777,-820.19,0.00050136,120]
[356546439,1742637102786,-665.21,0.00050136,120]
[356546440,1742637102796,-564.23,0.00050136,120]
[356546441,1742637102806,-500.0,0.00050136,120]
[356546442,1742637102815,-500.0,0.00050136,120]
[356546443,1742637102825,-1241.85,0.00050136,120]
[356546444,1742637102834,-500.0,0.00050136,120]
[356546445,1742637102844,-619.76,0.00050136,120]
[356546446,1742637102853,-500.0,0.00050136,120]
[356546447,1742637102863,-591.13,0.00050136,120]
[356546448,1742637102872,-500.0,0.00050136,120]
[356546449,1742637102882,-611.96,0.00050136,120]
[356546450,1742637102891,-500.0,0.00050136,120]
[356546451,1742637102901,-645.8,0.00050136,120]
[356546452,1742637102911,-529.2,0.00050136,120]
[356546453,1742637102920,-500.0,0.00050136,120]
[356546454,1742637102930,-601.81,0.00050136,120]
[356546455,1742637102940,-641.64,0.00050136,120]
[356546456,1742637102950,-500.0,0.00050136,120]
[356546457,1742637102959,-640.55,0.00050136,120]
[356546458,1742637102970,-627.71,0.00050136,120]
[356546459,1742637102980,-701.19,0.00050136,120]
[356546460,1742637102989,-1353.99,0.00050136,120]
[356546461,1742637102998,-500.0,0.00050136,120]
[356546462,1742637103008,-500.0,0.00050136,120]
[356546463,1742637103017,-658.79,0.00050136,120]
[356546464,1742637103026,-1518.81,0.00050136,120]
[356546465,1742637103036,-1579.16,0.00050136,120]
[356546466,1742637103046,-842.72,0.00050136,120]
[356546467,1742637103057,-500.0,0.00050136,120]
[356546468,1742637103067,-1920.4,0.00050136,120]
[356546469,1742637103077,-500.0,0.00050136,120]
[356546470,1742637103088,-636.90228645,0.00050136,120]
[356546471,1742637103098,-5245.81,0.00050136,120]
[356546472,1742637103108,-500.0,0.00050136,120]
[356546473,1742637103118,-2131.02,0.00050136,120]
[356546474,1742637103128,-641.95864365,0.00050136,120]
[356546475,1742637103137,-983.72,0.00050136,120]
[356546476,1742637103148,-585.87,0.00050136,120]
[356546477,1742637103337,-1445.99,0.00050136,120]
[356546478,1742637103359,-689.75,0.00050136,120]
[356546479,1742637103374,-500.0,0.00050136,120]
[356546480,1742637103383,-417.46384331,0.00050136,120]
[356546481,1742637103392,-846.6,0.00050136,120]
[356546482,1742637103403,-635.78,0.00050136,120]
[356546483,1742637103412,-587.36,0.00050136,120]
[356546484,1742637103421,-1413.44,0.00050136,120]
[356546485,1742637103431,-4235.9,0.00050136,2]
[356546486,1742637103442,-500.0,0.00050136,120]
[356546487,1742637103451,-500.0,0.00050136,120]
[356546488,1742637103461,-1454.51,0.00050136,120]
[356546489,1742637103470,-500.0,0.00050136,120]
[356546490,1742637103479,-500.0,0.00050136,120]
[356546491,1742637103489,-500.0,0.00050136,120]
[356546492,1742637103498,-970.54,0.00050136,120]
[356546493,1742637103507,-586.12,0.00050136,120]
[356546494,1742637103516,-289.40876979,0.00050136,120]
[356546495,1742637103527,-635.48,0.00050136,120]
[356546496,1742637103536,-647.73,0.00050136,120]
[356546497,1742637103547,-1824.31,0.00050136,120]
[356546498,1742637103556,-996.39,0.00050136,120]
[356546499,1742637103566,-500.0,0.00050136,120]
[356546500,1742637103576,-833.59,0.00050136,120]
[356546501,1742637103586,-809.31,0.00050136,120]
[356546502,1742637103596,-2000.27,0.00050136,120]
[356546503,1742637103605,-1128.13,0.00050136,120]
[356546504,1742637103614,-205.85,0.00050136,7]
[356546505,1742637103624,-2750.71,0.00050136,120]
[356546506,1742637103633,-500.0,0.00050136,120]
[356546507,1742637103642,-500.0,0.00050136,120]
[356546508,1742637103651,-972.4,0.00050136,120]
[356546509,1742637103660,-912.87,0.00050136,120]
[356546510,1742637103669,-558.47,0.00050136,120]
[356546511,1742637103678,-1367.27,0.00050136,120]
[356546512,1742637103688,-743.38,0.00050136,120]
[356546513,1742637103697,-520.84,0.00050136,120]
[356546514,1742637103706,-3375.17,0.00050136,120]
[356546515,1742637103715,-500.0,0.00050136,120]
[356546516,1742637103724,-1219.57,0.00050136,120]
[356546517,1742637103733,-500.0,0.00050136,120]
[356546518,1742637103742,-2818.72,0.00050136,120]
[356546519,1742637103752,-500.0,0.00050136,120]
[356546520,1742637103761,-825.87,0.00050136,120]
[356546521,1742637103771,-216.35801456,0.00050136,120]
[356546522,1742637103780,-635.13,0.00050136,120]
[356546523,1742637103789,-827.5,0.00050136,120]
[356546524,1742637103798,-500.0,0.00050136,120]
[356546525,1742637103807,-695.68,0.00050136,120]
[356546526,1742637103816,-666.85,0.00050136,120]
[356546527,1742637103825,-606.96,0.00050136,120]
[356546528,1742637103836,-1356.69,0.00050136,7]
[356546529,1742637103846,-1736.83,0.00050136,120]
[356546530,1742637103856,-913.27,0.00050136,120]
[356546531,1742637103865,-599.99,0.00050136,120]
[356546532,1742637103875,-500.0,0.00050136,120]
[356546533,1742637103884,-527.15,0.00050136,120]
[356546534,1742637103893,-241.00129961,0.00050136,120]
[356546535,1742637103902,-597.23,0.00050136,120]
[356546536,1742637103911,-501.82,0.00050136,120]
[356546537,1742637103920,-1106.0,0.00050136,120]
[356546538,1742637103930,-882.82,0.00050136,120]
[356546539,1742637103940,-1127.56,0.00050136,120]
[356546540,1742637103950,-500.0,0.00050136,120]
[356546541,1742637103959,-1089.93,0.00050136,7]
[356546542,1742637103968,-500.0,0.00050136,120]
[356546543,1742637103978,-500.0,0.00050136,120]
[356546544,1742637103987,-502.2,0.00050136,120]
[356546545,1742637103999,-1068.57,0.00050136,120]
[356546546,1742637104008,-1131.58,0.00050136,120]
[356546547,1742637104017,-529.97,0.00050136,120]
[356546548,1742637104026,-539.37654616,0.00050136,120]
[356546549,1742637104036,-559.18,0.00050136,120]
[356546550,1742637104045,-500.0,0.00050136,120]
[356546551,1742637104054,-1578.59,0.00050136,120]
[356546552,1742637104063,-5060.41,0.00050136,120]
[356546553,1742637104073,-500.0,0.00050136,120]
[356546554,1742637104083,-500.0,0.00050136,120]
[356546555,1742637104092,-938.19,0.00050136,120]
[356546556,1742637104102,-567.38,0.00050136,120]
[356546557,1742637104113,-617.69,0.00050136,120]
[356546558,1742637104122,-1439.24,0.00050136,120]
[356546559,1742637104131,-1288.21,0.00050136,120]
[356546560,1742637104142,-3623.73,0.00050136,120]
[356546561,1742637104153,-1914.19,0.00050136,120]
[356546562,1742637104162,-1583.29,0.00050136,120]
[356546563,1742637104172,-1724.46,0.00050136,120]
[356546564,1742637104182,-2003.91,0.00050136,100]
[356546565,1742637104192,-1585.84,0.00050136,120]
[356546566,1742637104202,-500.0,0.00050136,120]
[356546567,1742637104212,-2253.09,0.00050136,120]
[356546568,1742637104221,-500.0,0.00050136,120]
[356546569,1742637104231,-500.0,0.00050136,120]
[356546570,1742637104241,-645.37,0.00050136,120]
[356546571,1742637104251,-691.36,0.00050136,120]
[356546572,1742637104261,-817.6,0.00050136,120]
[356546573,1742637104270,-523.41,0.00050136,120]
[356546574,1742637104280,-1609.26,0.00050136,120]
[356546575,1742637104289,-1857.45,0.00050136,120]
[356546576,1742637104299,-1181.24,0.00050136,120]
[356546577,1742637104308,-592.73,0.00050136,120]
[356546578,1742637104318,-1111.56,0.00050136,120]
[356546579,1742637104327,-500.0,0.00050136,120]
[356546580,1742637104337,-329.29373432,0.00050136,120]
[356546581,1742637104351,-1095.08,0.00050136,120]
[356546582,1742637104362,-1041.52,0.00050136,120]
[356546583,1742637104371,-500.0,0.00050136,120]
[356546584,1742637104381,-624.9,0.00050136,120]
[356546585,1742637104390,-796.13,0.00050136,120]
[356546586,1742637104400,-751.81,0.00050136,120]
[356546587,1742637104409,-722.59,0.00050136,120]
[356546588,1742637104421,-554.28,0.00050136,120]
[356546589,1742637104432,-555.78,0.00050136,120]
[356546590,1742637104442,-500.0,0.00050136,120]
[356546591,1742637104452,-3273.79,0.00050136,120]
[356546592,1742637104461,-2930.96,0.00050136,120]
[356546593,1742637104471,-1052.7,0.00050136,120]
[356546594,1742637104481,-504.22,0.00050136,120]
[356546595,1742637104491,-500.0,0.00050136,120]
[356546596,1742637104501,-504.42,0.00050136,120]
[356546597,1742637104511,-1485.55,0.00050136,120]
[356546598,1742637104520,-1080.77,0.00050136,120]
[356546599,1742637104530,-657.13,0.00050136,120]
[356546600,1742637104539,-500.0,0.00050136,120]
[356546601,1742637104548,-517.31,0.00050136,120]
[356546602,1742637104557,-760.27,0.00050136,120]
[356546603,1742637104567,-899.53,0.00050136,120]
[356546604,1742637104576,-500.0,0.00050136,120]
[356546605,1742637104587,-500.0,0.00050136,120]
[356546606,1742637104597,-692.39,0.00050136,120]
[356546607,1742637104608,-500.0,0.00050136,120]
[356546608,1742637104619,-555.67,0.00050136,120]
[356546609,1742637104629,-1026.62,0.00050136,120]
[356546610,1742637104639,-500.0,0.00050136,120]
[356546611,1742637104648,-1504.12,0.00050136,120]
[356546612,1742637104658,-655.7,0.00050136,120]
[356546613,1742637104668,-500.0,0.00050136,120]
[356546614,1742637104679,-668.14,0.00050136,120]
[356546615,1742637104689,-529.96,0.00050136,120]
[356546616,1742637104699,-1785.62,0.00050136,120]
[356546617,1742637104708,-56672.48,0.00050136,120]
[356546618,1742637104717,-874.3,0.00050136,120]
[356546619,1742637104727,-500.0,0.00050136,120]
[356546620,1742637104737,-892.9,0.00050136,120]
[356546621,1742637104748,-507.98,0.00050136,120]
[356546622,1742637104758,-767.43,0.00050136,120]
[356546623,1742637104767,-818.49,0.00050136,120]
[356546624,1742637104776,-574.58,0.00050136,120]
[356546625,1742637104785,-622.98,0.00050136,120]
[356546626,1742637104794,-1187.99,0.00050136,120]
[356546627,1742637104804,-594.34,0.00050136,120]
[356546628,1742637104813,-500.0,0.00050136,120]
[356546629,1742637104822,-724.76,0.00050136,120]
[356546630,1742637104831,-511.3868298,0.00050136,120]
[356546631,1742637104840,-554.79,0.00050136,120]
[356546632,1742637104850,-500.0,0.00050136,120]
[356546633,1742637104859,-864.88,0.00050136,120]
[356546634,1742637104869,-664.62,0.00050136,120]
[356546635,1742637104878,-870.55,0.00050136,120]
[356546636,1742637104887,-500.0,0.00050136,120]
[356546637,1742637104896,-3152.52,0.00050136,120]
[356546638,1742637104906,-219.29507923,0.00050183,39]
[356546639,1742637104915,-151.78,0.00050228,120]
[356546640,1742637104926,-1000.0,0.00050378,120]
[356546641,1742637104935,-904.785999,0.0005041,120]
[356546642,1742637104944,-733.844647,0.0005041,120]
[356546643,1742637104954,-159.505277,0.0005041,120]
[356546644,1742637104964,-500.0,0.0005041,120]
[356546645,1742637104973,-739.16,0.0005041,120]
[356546646,1742637104982,-500.0,0.0005041,120]
[356546647,1742637104991,-950.82,0.0005041,120]
[356546648,1742637105000,-517.63,0.0005041,120]
[356546649,1742637105009,-1049.72,0.0005041,120]
[356546650,1742637105018,-653.69,0.0005041,120]
[356546651,1742637105027,-907.89,0.0005041,120]
[356546652,1742637105036,-600.62,0.0005041,120]
[356546653,1742637105045,-500.0,0.0005041,120]
[356546654,1742637105054,-500.0,0.0005041,120]
[356546655,1742637105063,-500.0,0.0005041,120]
[356546656,1742637105073,-501.22,0.0005041,120]
[356546657,1742637105082,-761.07,0.0005041,120]
[356546658,1742637105092,-956.79,0.0005041,120]
[356546659,1742637105101,-500.0,0.0005041,120]
[356546660,1742637105111,-963.36,0.0005041,60]
[356546661,1742637105120,-782.21,0.0005041,120]
[356546662,1742637105131,-500.0,0.0005041,120]
[356546663,1742637105140,-584.06,0.0005041,120]
[356546664,1742637105150,-673.59,0.0005041,120]
[356546665,1742637105159,-500.0,0.0005041,120]
[356546666,1742637105168,-502.51,0.0005041,120]